bitfinex/quotes_ETHUSD_20250604
["timestamp","ask_amount","ask_price","bid_price","bid_amount"]
[1749003786920,1.2051,2615.6,2615.4,14.47]
[1749003787120,1.2051,2615.6,2615.5,1.609]
[1749003787414,3.5191791,2615.6,2615.5,1.609]
[1749003791068,3.5191791,2615.6,2615.5,1.611]
[1749003791303,3.98813357,2615.6,2615.5,1.611]
[1749003793986,3.5191791,2615.6,2615.5,1.611]
[1749003794337,2.3140791,2615.9,2615.5,1.611]
[1749003794533,1.2228,2615.8,2615.5,1.611]
[1749003794671,1.2228,2616.1,2615.5,1.611]
[1749003795473,1.2197,2616.3,2615.5,1.611]
[1749003795903,1.2197,2616.3,2615.6,10.0]
[1749003796116,0.02,2616.9,2615.6,10.0]
[1749003796117,1.2197,2616.5,2615.6,10.0]
[1749003796415,1.2197,2616.5,2615.6,20.0]
[1749003796622,2.3140791,2616.6,2615.6,10.0]
[1749003796924,4.5490791,2616.7,2615.6,10.0]
[1749003798323,4.5490791,2616.7,2615.7,8.0]
[1749003798532,2.3140791,2616.3,2615.9,8.0]
[1749003798944,2.3140791,2616.3,2616.0,7.839]
[1749003799093,2.3140791,2616.3,2615.5,8.0]
[1749003799293,4.80766857,2616.6,2615.7,8.0]
[1749003799689,4.80766857,2616.6,2615.5,18.0]
[1749003799894,4.80766857,2616.6,2615.7,8.0]
[1749003800646,4.80766857,2616.6,2615.5,8.0]
[1749003800791,4.80766857,2616.6,2615.6,7.837]
[1749003800992,4.80766857,2616.6,2615.7,7.837]
[1749003801192,4.80766857,2616.6,2615.8,8.0]
[1749003804258,1.2418,2616.2,2615.9,1.611]
[1749003804397,4.80766857,2616.0,2615.9,1.611]
[1749003804591,6.59946857,2616.0,2615.9,1.611]
[1749003811199,1.2418,2616.0,2615.9,1.611]
[1749003811950,6.04946857,2616.0,2615.9,1.611]
[1749003812316,0.55,2615.9,2615.4,8.246]
[1749003812507,0.55,2615.9,2615.5,7.836]
[1749003813200,1.2418,2616.0,2615.5,7.836]
[1749003815211,4.80766857,2615.9,2615.5,7.836]
[1749003815549,4.80766857,2615.9,2615.6,1.611]
[1749003815898,0.55,2615.8,2615.6,1.611]
[1749003816096,1.8341,2615.7,2615.6,1.611]
[1749003817202,2.49827686,2615.7,2615.6,1.611]
[1749003818919,6.64176857,2615.7,2615.6,1.611]
[1749003821351,4.14690573,2615.7,2615.6,1.611]
[1749003822131,4.14690573,2615.7,2615.6,1.61]
[1749003822925,1.8612,2615.5,2615.4,8.246]
[1749003823121,4.17400573,2615.5,2615.4,8.246]
[1749003823321,4.5914063,2615.5,2615.4,9.856]
[1749003823948,4.5914063,2615.5,2615.4,8.246]
[1749003824260,4.5914063,2615.5,2615.4,9.856]
[1749003824463,4.5914063,2615.5,2615.4,8.246]
[1749003824636,0.55,2615.3,2615.2,1.61]
[1749003824878,0.55,2615.3,2614.5,6.226]
[1749003824879,1.3077,2614.7,2614.5,6.226]
[1749003825021,1.3077,2614.7,2614.6,1.61]
[1749003825365,1.8577,2614.7,2614.6,1.61]
[1749003829956,0.55,2614.6,2614.3,8.248]
[1749003830271,0.55,2614.6,2614.4,1.61]
[1749003830563,0.45914063,2615.4,2614.4,1.61]
[1749003830768,4.8143331,2615.2,2614.5,10.0]
[1749003831274,4.8143331,2615.6,2614.6,10.0]
[1749003831427,6.0893331,2615.6,2614.4,9.61]
[1749003831738,0.55,2615.5,2614.6,8.0]
[1749003831945,6.0893331,2615.6,2614.4,9.61]
[1749003832249,6.0893331,2615.6,2614.7,2.423822]
[1749003832451,0.55,2615.5,2614.6,8.0]
[1749003833036,0.55,2615.5,2614.7,2.423822]
[1749003833491,4.8143331,2615.0,2614.4,8.0]
[1749003833629,0.55,2614.9,2614.8,1.61]
[1749003834640,1.7938,2614.9,2614.8,1.61]
[1749003844997,0.55,2614.9,2614.8,1.61]
[1749003845309,2.86405784,2614.9,2614.8,1.61]
[1749003845669,0.55,2614.9,2614.8,1.61]
[1749003847160,1.767,2614.8,2613.9,8.251]
[1749003847422,0.55,2614.6,2614.0,1.61]
[1749003847606,0.55,2614.4,2614.0,1.61]
[1749003848007,0.55,2614.2,2613.9,8.251]
[1749003848313,0.55,2614.2,2614.1,1.61]
[1749003849495,5.36645007,2614.2,2614.1,1.61]
[1749003849717,6.02479508,2614.2,2614.1,1.61]
[1749003854379,7.24609508,2614.2,2614.1,1.61]
[1749003856952,2.42964501,2614.2,2614.1,1.61]
[1749003857091,1.2112,2614.5,2614.1,1.61]
[1749003857489,0.55,2614.4,2614.1,1.61]
[1749003862099,5.97915007,2614.7,2614.1,1.61]
[1749003862404,5.97915007,2615.0,2614.1,1.61]
[1749003862740,0.55,2614.9,2614.1,1.61]
[1749003863437,0.55,2614.6,2614.1,1.61]
[1749003864124,0.55,2614.9,2614.1,1.61]
[1749003864441,0.55,2614.7,2614.1,1.61]
[1749003866115,0.55,2614.9,2614.1,1.61]
[1749003866328,0.55,2614.7,2614.1,1.61]
[1749003867244,4.81645007,2615.1,2614.1,11.61]
[1749003867626,0.55,2615.0,2614.1,11.61]
[1749003869281,4.81645007,2614.8,2614.2,7.855]
[1749003869482,4.81645007,2614.8,2613.9,8.251]
[1749003869759,4.81645007,2614.8,2614.0,7.856]
[1749003870163,4.81645007,2615.1,2614.2,10.0]
[1749003870858,0.55,2615.2,2614.2,10.0]
[1749003871361,2.31373904,2615.0,2614.2,10.0]
[1749003872250,2.31373904,2614.6,2614.1,10.0]
[1749003872450,2.31373904,2614.6,2614.3,1.618]
[1749003872638,2.31373904,2614.6,2614.4,7.856]
[1749003873266,4.81414678,2614.9,2614.4,7.856]
[1749003874854,6.07334678,2614.9,2614.4,7.856]
[1749003875277,6.07334678,2614.9,2614.4,7.855]
[1749003875278,0.55,2614.8,2614.4,7.855]
[1749003878124,4.81414678,2614.9,2614.4,7.855]
[1749003879827,0.55,2614.8,2614.4,1.618]
[1749003880031,4.81414678,2614.6,2614.4,1.618]
[1749003880439,4.81414678,2614.6,2613.9,8.251]
[1749003880728,4.81414678,2614.6,2614.0,7.85]
[1749003881567,0.55,2614.5,2614.0,1.618]
[1749003887129,0.55,2614.2,2614.0,1.618]
[1749003894086,0.55,2614.2,2613.9,8.251]
[1749003894380,1.7949,2614.2,2614.1,1.618]
[1749003895558,6.42674432,2614.2,2614.1,1.618]
[1749003895773,7.06941875,2614.2,2614.1,1.618]
[1749003899284,4.75349659,2614.2,2614.1,1.618]
[1749003902403,4.75349659,2614.2,2614.0,1.618]
[1749003902700,0.55,2614.0,2613.2,8.254]
[1749003902988,2.31592216,2613.6,2613.3,1.618]
[1749003903558,2.31592216,2613.6,2613.3,7.845]
[1749003905053,2.31592216,2613.6,2613.3,1.618]
[1749003913584,2.31592216,2613.6,2613.4,1.618]
[1749003914662,2.86592216,2613.6,2613.5,1.611]
[1749003914903,2.86592216,2613.6,2613.1,6.227]
[1749003915290,2.86592216,2613.6,2613.2,1.611]
[1749003917611,2.86592216,2613.6,2613.2,1.9850532]
[1749003918290,4.05902216,2613.3,2613.2,1.611]
[1749003918899,3.50902216,2613.3,2613.2,1.611]
[1749003919100,4.40992438,2613.3,2613.2,1.611]
[1749003919500,1.7431,2613.2,2613.1,8.255]
[1749003919716,1.7431,2613.2,2613.1,9.866]
[1749003920437,4.05902216,2613.2,2613.1,9.866]
[1749003932783,6.37494432,2613.2,2613.1,9.866]
[1749003932947,7.04752897,2613.2,2613.1,9.866]
[1749003933306,7.04752897,2613.2,2612.1,0.02]
[1749003933307,0.55,2612.8,2612.7,1.611]
[1749003933450,0.55,2612.7,2612.4,1.611]
[1749003933646,1.7561,2612.5,2612.4,1.611]
[1749003937657,2.86592216,2612.5,2612.4,1.611]
[1749003938573,5.34258465,2613.2,2612.4,1.611]
[1749003938772,2.31592216,2612.6,2612.4,1.611]
[1749003940006,0.55,2612.5,2612.1,6.249]
[1749003940201,0.55,2612.5,2612.2,1.612]
[1749003940202,2.31592216,2612.3,2612.2,1.612]
[1749003941604,2.86592216,2612.3,2612.2,1.612]
[1749003949944,4.05092216,2612.3,2612.2,1.612]
[1749003953030,0.55,2612.2,2612.1,1.612]
[1749003954142,5.18184432,2612.2,2612.1,1.612]
[1749003954336,5.81852875,2612.2,2612.1,1.612]
[1749003955174,3.50260659,2612.2,2612.1,1.612]
[1749003959885,3.50260659,2612.2,2612.0,1.612]
[1749003960080,2.31592216,2612.1,2612.0,1.612]
[1749003961998,0.55,2612.2,2612.0,1.612]
[1749003962225,0.02,2612.9,2612.1,6.26]
[1749003962516,0.02,2612.9,2612.2,8.0]
[1749003962517,2.31592216,2612.8,2612.2,8.0]
[1749003962721,2.31592216,2612.6,2612.3,7.873]
[1749003962904,2.31592216,2612.6,2612.4,7.873]
[1749003963100,2.31592216,2612.6,2612.5,1.612]
[1749003965021,2.31592216,2612.8,2612.5,1.612]
[1749003967479,0.02,2612.9,2612.5,1.612]
[1749003968224,0.02,2612.9,2612.5,1.99643447]
[1749003969201,2.31592216,2612.6,2612.5,1.99643447]
[1749003969426,2.31592216,2612.6,2612.5,8.24943447]
[1749003970133,0.02,2612.9,2612.5,8.24943447]
[1749003970134,2.31592216,2612.8,2612.5,8.24943447]
[1749003971833,0.02,2612.9,2612.5,8.24943447]
[1749003972806,2.31592216,2612.8,2612.5,1.99643447]
[1749003973136,2.31592216,2612.8,2612.6,6.248]
[1749003974245,2.31592216,2612.8,2612.7,1.611]
[1749003977072,0.02,2612.9,2612.7,1.611]
[1749003979937,3.54632216,2612.8,2612.5,0.38443447]
[1749003980138,2.31592216,2612.6,2612.4,8.259]
[1749003980339,0.02,2612.9,2612.5,1.62]
[1749003980772,0.02,2612.9,2612.5,2.01151905]
[1749003983039,0.02,2612.9,2612.5,0.39151905]
[1749003983235,0.02,2612.9,2612.6,7.869]
[1749003984581,0.02,2612.9,2612.6,7.868]
[1749003988459,0.02,2612.9,2612.7,1.62]
[1749003989077,2.31592216,2612.8,2612.5,6.63351905]
[1749003989273,2.31592216,2612.8,2612.6,1.62]
[1749003990978,2.31592216,2612.8,2612.5,0.39151905]
[1749003991321,2.31592216,2612.6,2612.4,8.259]
[1749003991525,2.31592216,2612.8,2612.6,1.62]
[1749003992129,1.1917,2612.7,2612.6,1.62]
[1749003993175,1.1917,2612.7,2612.6,2.21782964]
[1749003997211,1.54446222,2612.7,2612.6,0.59782964]
[1749003997413,1.54446222,2612.7,2612.6,2.21782964]
[1749003998417,1.54446222,2612.7,2612.6,0.59782964]
[1749003998595,1.54446222,2612.7,2612.6,2.21782964]
[1749003999205,2.09446222,2612.7,2612.6,2.21782964]
[1749003999420,2.11376222,2612.7,2612.6,2.21782964]
[1749003999808,2.11376222,2612.7,2612.6,0.59782964]
[1749004000298,0.55,2612.5,2612.4,8.259]
[1749004000500,4.07692216,2612.5,2612.4,8.259]
[1749004002101,4.07692216,2612.5,2612.3,2.21792014]
[1749004002102,1.761,2612.5,2612.3,1.62]
[1749004002313,2.86592216,2612.4,2612.3,1.62]
[1749004004897,2.86592216,2612.4,2611.4,8.258]
[1749004004898,0.55,2612.2,2611.4,8.258]
[1749004005103,2.31592216,2611.7,2611.5,1.621]
[1749004005324,2.31592216,2611.9,2611.5,1.621]
[1749004016368,1.1544,2612.3,2611.5,1.621]
[1749004016572,2.31592216,2612.1,2611.5,1.621]
[1749004017267,2.31592216,2612.1,2611.5,7.852]
[1749004017846,2.31592216,2611.9,2611.5,7.852]
[1749004018787,2.31592216,2611.9,2611.5,1.621]
[1749004018968,2.31592216,2611.9,2611.5,7.852]
[1749004020293,2.31592216,2612.1,2611.5,7.852]
[1749004021591,2.31592216,2612.5,2611.7,10.0]
[1749004023273,2.31592216,2612.5,2611.8,6.231]
[1749004023468,2.31592216,2612.3,2611.8,6.231]
[1749004024394,2.31592216,2612.5,2611.8,6.231]
[1749004026289,2.31592216,2612.5,2611.6,10.0]
[1749004026480,2.31592216,2612.5,2611.9,6.231]
[1749004030577,2.31592216,2612.5,2611.6,10.0]
[1749004030903,2.31592216,2612.5,2611.7,1.616]
[1749004030904,2.31592216,2612.0,2611.7,1.616]
[1749004033598,2.31592216,2611.8,2611.7,0.3891824]
[1749004033797,2.66012438,2611.8,2611.7,1.616]
[1749004034094,2.31592216,2611.8,2611.7,1.616]
[1749004037368,2.31592216,2611.8,2611.6,8.259]
[1749004037701,2.31592216,2611.8,2611.7,1.612]
[1749004038974,2.31592216,2612.0,2611.7,1.612]
[1749004041211,2.31592216,2612.0,2611.8,1.612]
[1749004041409,2.66329438,2612.0,2611.8,1.612]
[1749004045591,2.31592216,2612.0,2611.8,1.612]
[1749004051129,3.43922216,2612.3,2611.8,1.612]
[1749004052330,2.31592216,2612.5,2611.8,1.612]
[1749004052901,2.31592216,2612.3,2611.8,1.612]
[1749004053415,2.31592216,2612.0,2611.9,7.843]
[1749004053594,2.31592216,2612.2,2611.9,7.843]
[1749004056227,2.31592216,2612.4,2611.9,7.843]
[1749004060135,2.31592216,2612.6,2611.9,7.843]
[1749004060544,2.31592216,2612.4,2611.9,7.843]
[1749004063969,2.31592216,2612.2,2612.0,7.842]
[1749004065022,2.31592216,2612.2,2612.1,1.612]
[1749004072048,2.31592216,2612.2,2612.1,7.841]
[1749004074077,2.31592216,2612.2,2611.9,8.259]
[1749004074289,2.31592216,2612.2,2612.1,7.84]
[1749004075673,2.31592216,2612.2,2612.1,1.611]
[1749004075878,2.31592216,2612.2,2612.1,7.84]
[1749004077782,2.31592216,2612.4,2612.1,7.84]
[1749004079560,2.31592216,2612.2,2612.1,7.84]
[1749004082490,2.31592216,2612.4,2612.1,7.84]
[1749004082793,2.31592216,2612.4,2612.2,7.84]
[1749004083989,2.31592216,2612.6,2612.2,7.84]
[1749004084697,1.1806,2612.7,2612.2,7.84]
[1749004084698,2.31592216,2612.4,2612.2,7.84]
[1749004089198,0.02,2612.9,2612.2,7.84]
[1749004089494,0.02,2612.9,2612.2,8.39134456]
[1749004090198,0.02,2612.9,2612.3,10.0]
[1749004090493,0.02,2612.9,2612.3,8.118616]
[1749004090805,0.02,2612.9,2612.2,7.84]
[1749004090806,0.02,2612.9,2612.4,10.0]
[1749004091011,0.02,2612.9,2612.5,7.839]
[1749004091609,2.31592216,2612.8,2612.1,10.0]
[1749004091793,2.31592216,2612.8,2612.6,6.228]
[1749004092153,2.31592216,2612.8,2612.2,1.611]
[1749004092154,2.31592216,2612.8,2612.7,1.611]
[1749004092359,2.66988438,2612.8,2612.7,1.611]
[1749004092806,2.31592216,2612.8,2612.7,1.611]
[1749004093895,2.31592216,2612.8,2611.9,8.259]
[1749004093896,1.2037,2612.7,2611.9,8.259]
[1749004094091,2.31592216,2612.4,2612.0,7.839]
[1749004095057,2.31592216,2612.4,2611.9,8.259]
[1749004095259,2.31592216,2612.4,2612.0,7.839]
[1749004096096,2.31592216,2612.4,2612.1,1.611]
[1749004096294,2.31592216,2612.4,2612.0,8.258]
[1749004096499,2.31592216,2612.4,2612.1,1.611]
[1749004097589,1.1498,2612.1,2612.0,9.869]
[1749004097767,1.1498,2612.1,2612.0,1.611]
[1749004097962,1.6998,2612.1,2612.0,1.611]
[1749004100104,1.1498,2612.1,2612.0,1.611]
[1749004101102,2.31592216,2612.2,2612.0,1.611]
[1749004102301,2.66286438,2612.2,2612.0,1.611]
[1749004103672,2.66286438,2612.2,2612.1,1.611]
[1749004105194,1.6966,2612.1,2611.3,0.38874107]
[1749004105515,2.31592216,2611.8,2611.4,1.611]
[1749004105674,2.31592216,2611.8,2611.4,2.02100109]
[1749004105872,2.31592216,2612.0,2611.4,1.611]
[1749004108810,2.31592216,2611.8,2611.4,1.611]
[1749004109221,2.31592216,2611.8,2611.3,0.37785194]
[1749004109371,2.31592216,2611.8,2611.4,7.84]
[1749004109772,1.1466,2612.1,2611.2,8.0]
[1749004109773,2.31592216,2611.6,2611.5,1.611]
[1749004112054,1.1466,2612.1,2611.5,1.611]
[1749004112055,2.31592216,2611.8,2611.5,1.611]
[1749004112392,2.31592216,2611.8,2611.6,1.611]
[1749004113935,1.1466,2612.1,2611.6,1.611]
[1749004114140,2.31592216,2611.8,2611.6,1.611]
[1749004121462,1.1466,2612.1,2611.6,1.611]
[1749004121781,2.31592216,2611.8,2611.6,1.611]
[1749004124187,2.31592216,2611.8,2611.3,8.64545813]
[1749004124391,2.31592216,2611.8,2611.7,1.611]
[1749004128318,2.31592216,2612.0,2611.7,1.611]
[1749004130358,2.66217438,2612.0,2611.7,1.611]
[1749004131465,2.31592216,2612.0,2611.7,1.611]
[1749004132377,2.31592216,2611.8,2611.5,6.228]
[1749004132579,2.31592216,2611.8,2611.6,1.61]
[1749004134775,2.31592216,2612.0,2611.6,1.61]
[1749004135896,0.25359222,2612.9,2611.6,1.61]
[1749004135897,1.1673,2612.4,2611.6,1.61]
[1749004136231,2.31592216,2612.5,2611.8,10.0]
[1749004136397,2.31592216,2612.5,2611.7,16.862304]
[1749004136575,2.31592216,2612.5,2611.8,10.0]
[1749004136775,2.31592216,2612.5,2611.7,16.882304]
[1749004137111,2.31592216,2612.5,2611.6,1.61]
[1749004137112,2.31592216,2612.5,2611.8,10.0]
[1749004137422,2.31592216,2612.3,2611.6,1.61]
[1749004140117,2.31592216,2612.1,2611.3,0.38254624]
[1749004140324,2.31592216,2612.1,2611.7,7.838]
[1749004143498,2.31592216,2612.1,2611.3,2.347911]
[1749004143698,2.31592216,2612.1,2611.5,10.0]
[1749004144101,2.31592216,2612.1,2611.6,10.0]
[1749004144299,2.31592216,2612.1,2611.5,10.0]
[1749004145736,2.31592216,2612.1,2611.6,7.837]
[1749004146101,1.2235,2612.2,2611.6,7.837]
[1749004146303,2.31592216,2612.3,2611.6,7.837]
[1749004147803,2.31592216,2612.3,2611.7,8.26]
[1749004149434,3.49922216,2612.8,2611.9,8.4213]
[1749004149642,1.1833,2612.8,2611.9,8.4213]
[1749004150629,0.02,2612.9,2612.0,10.0]
[1749004151372,0.02,2612.9,2612.1,10.0]
[1749004151652,0.02,2612.9,2612.3,20.0]
[1749004151970,0.02,2612.9,2612.3,10.0]
[1749004152165,0.02,2612.9,2612.3,9.124388]
[1749004152529,0.02,2612.9,2612.3,0.26163926]
[1749004152862,0.02,2612.9,2612.3,10.0]
[1749004154134,2.33592216,2612.9,2612.3,10.0]
[1749004154332,2.33592216,2612.9,2612.3,9.045146]
[1749004158647,2.33592216,2612.9,2612.4,6.225]
[1749004162950,0.02,2612.9,2612.5,10.0]
[1749004167078,0.02,2612.9,2612.6,8.257]
[1749004172027,0.02,2612.9,2612.7,1.609]
[1749004172228,0.02,2612.9,2612.7,1.99238217]
[1749004178157,0.02,2612.9,2612.8,6.222]
[1749004178355,1.2211,2612.9,2612.8,1.609]
[1749004178657,1.2211,2612.9,2612.7,0.38338217]
[1749004178840,1.2011,2612.7,2612.6,6.222]
[1749004179154,1.2011,2612.7,2612.6,7.831]
[1749004180012,1.2011,2612.7,2612.5,8.256]
[1749004180214,1.2011,2612.7,2612.6,7.831]
[1749004180453,1.2011,2612.7,2612.5,8.256]
[1749004180653,1.2011,2612.7,2612.6,7.831]
[1749004191371,1.2011,2612.7,2612.6,7.83]
[1749004191959,1.1788,2612.9,2612.6,7.83]
[1749004194779,1.1788,2612.9,2612.7,10.0]
[1749004195484,0.02,2612.9,2612.7,10.38360257]
[1749004195673,0.02,2612.9,2612.7,0.38360257]
[1749004195876,0.02,2612.9,2612.7,10.0]
[1749004199859,0.02,2612.9,2612.8,1.608]
[1749004200059,1.2413,2612.8,2612.7,0.37345746]
[1749004200260,1.2413,2612.8,2612.7,7.829]
[1749004200886,1.2413,2612.8,2612.7,1.608]
[1749004201094,1.2413,2612.8,2612.7,7.829]
[1749004201700,1.2413,2612.8,2612.7,1.608]
[1749004201701,2.31592216,2612.8,2612.7,1.608]
[1749004202024,3.57182216,2612.8,2612.7,1.608]
[1749004202742,3.57182216,2612.8,2612.5,8.256]
[1749004203112,3.57182216,2612.8,2612.6,7.829]
[1749004204438,1.2559,2612.8,2612.6,7.829]
[1749004205537,0.02,2612.9,2612.7,10.0]
[1749004206822,0.02,2612.9,2612.6,7.829]
[1749004207027,3.50742216,2612.8,2612.7,7.829]
[1749004207219,3.50742216,2612.8,2612.7,1.608]
[1749004207419,3.50742216,2612.8,2612.7,7.829]
[1749004207756,3.50742216,2612.8,2612.7,8.20670828]
[1749004208052,3.50742216,2612.8,2612.7,0.37770828]
[1749004208254,3.50742216,2612.8,2612.7,7.829]
[1749004210156,1.1915,2612.8,2612.7,7.829]
[1749004211046,1.1915,2612.8,2612.7,8.20382227]
[1749004212456,1.1915,2612.8,2612.7,8.20282227]
[1749004213435,1.1915,2612.8,2612.7,1.608]
[1749004214565,1.1915,2612.8,2612.7,7.828]
[1749004215360,1.1915,2612.8,2612.7,8.2050498]
[1749004217977,1.1915,2612.8,2612.7,1.9850498]
[1749004218185,1.54424222,2612.8,2612.7,8.2050498]
[1749004218340,1.1915,2612.8,2612.7,8.2050498]
[1749004220111,1.1915,2612.8,2612.7,7.828]
[1749004223935,1.1915,2612.8,2612.7,1.608]
[1749004224139,3.50742216,2612.8,2612.7,7.828]
[1749004224538,3.50742216,2612.8,2612.7,7.826]
[1749004225459,2.66866438,2612.8,2612.4,8.257]
[1749004225659,2.31592216,2612.6,2612.5,1.606]
[1749004225861,2.31592216,2612.6,2612.5,7.826]
[1749004228077,2.31592216,2612.6,2612.5,1.606]
[1749004228282,2.31592216,2612.6,2612.5,7.826]
[1749004229351,2.6973886,2612.6,2612.5,7.826]
[1749004230054,2.31592216,2612.6,2612.5,7.826]
[1749004232793,2.31592216,2612.6,2612.5,7.825]
[1749004235408,2.31592216,2612.6,2612.4,8.257]
[1749004235582,2.31592216,2612.6,2612.5,7.825]
[1749004235778,2.31592216,2612.6,2612.5,1.606]
[1749004235983,2.31592216,2612.6,2612.5,7.825]
[1749004236501,2.66211438,2612.6,2612.5,1.607]
[1749004236671,3.83831438,2612.6,2612.5,1.607]
[1749004236872,4.38831438,2612.6,2612.4,8.257]
[1749004237121,4.42111438,2612.6,2612.5,1.607]
[1749004237321,0.55,2612.5,2611.3,0.38754177]
[1749004237514,3.21211438,2612.6,2611.3,0.38754177]
[1749004237515,2.31592216,2611.8,2611.4,7.826]
[1749004237717,2.31592216,2611.8,2611.4,8.20035587]
[1749004237918,1.209,2611.9,2611.4,8.20035587]
[1749004238280,2.31592216,2612.0,2611.4,8.20035587]
[1749004238481,1.2265,2612.2,2611.4,8.20035587]
[1749004238825,1.2265,2612.4,2611.6,10.0]
[1749004239346,3.54242216,2612.6,2611.6,10.0]
[1749004239561,3.54242216,2612.6,2611.6,1.01360789]
[1749004239849,3.54242216,2612.6,2611.7,10.0]
[1749004240743,3.54242216,2612.6,2611.6,10.0]
[1749004241049,2.31592216,2612.4,2611.5,10.44892789]
[1749004241214,2.31592216,2612.4,2611.7,7.826]
[1749004242839,3.54242216,2612.6,2611.9,10.0]
[1749004243042,3.54242216,2612.6,2612.0,10.0]
[1749004243210,3.54242216,2612.6,2611.9,10.0]
[1749004244275,3.54242216,2612.6,2611.9,14.256412]
[1749004244568,3.54242216,2612.6,2612.0,6.219]
[1749004244569,2.31592216,2612.4,2612.0,6.219]
[1749004245352,2.31592216,2612.4,2612.0,14.477]
[1749004246439,2.31592216,2612.4,2612.0,8.258]
[1749004246664,2.31592216,2612.4,2612.1,6.219]
[1749004247169,3.46542216,2612.2,2612.0,8.258]
[1749004247374,3.46542216,2612.2,2612.1,1.607]
[1749004251328,0.35424222,2612.4,2612.1,1.607]
[1749004251568,2.31592216,2612.2,2612.1,1.607]
[1749004252377,2.31592216,2612.4,2612.1,1.607]
[1749004254081,3.48352216,2612.2,2612.1,1.607]
[1749004256846,3.48352216,2612.2,2612.0,8.258]
[1749004257045,3.48352216,2612.2,2612.1,1.606]
[1749004258451,3.48352216,2612.2,2612.0,8.258]
[1749004258744,3.83187438,2612.2,2612.1,1.606]
[1749004258959,3.83187438,2612.2,2612.0,8.258]
[1749004259162,3.83187438,2612.2,2612.1,1.606]
[1749004261342,3.48352216,2612.2,2612.1,1.606]
[1749004262158,2.31592216,2612.2,2612.1,1.606]
[1749004262389,3.55912216,2612.4,2612.1,1.606]
[1749004262712,4.69,2612.9,2612.1,1.606]
[1749004262855,1.2471,2612.8,2612.1,1.606]
[1749004263194,2.33592216,2612.9,2612.1,1.606]
[1749004264155,0.02,2612.9,2612.2,4.3439]
[1749004267065,2.33592216,2612.9,2612.3,7.823]
[1749004267964,2.33592216,2612.9,2612.0,8.258]
[1749004267965,2.33592216,2612.9,2612.4,7.823]
[1749004268206,0.02,2612.9,2612.4,7.823]
[1749004268514,0.02,2612.9,2612.6,2.35163]
[1749004268721,0.02,2612.9,2612.5,10.0]
[1749004269606,0.02,2612.9,2612.5,1.10630564]
[1749004269803,0.02,2612.9,2612.6,1.10630564]
[1749004270010,0.02,2612.9,2612.6,7.746654]
[1749004270205,0.02,2612.9,2612.4,7.823]
[1749004270908,0.02,2612.9,2612.5,10.0]
[1749004271306,0.02,2612.9,2612.6,10.0]
[1749004271645,0.02,2612.9,2612.7,7.822]
[1749004271841,0.02,2612.9,2612.8,1.605]
[1749004272346,0.02,2612.9,2612.8,1.98622247]
[1749004273897,0.02,2612.9,2612.8,0.38122247]
[1749004274097,0.02,2612.9,2612.8,7.822]
[1749004274311,0.02,2612.9,2612.2,3.82816182]
[1749004274312,0.02,2612.9,2612.1,10.0]
[1749004274536,2.33592216,2612.9,2612.1,10.0]
[1749004274720,2.31592216,2612.7,2612.2,1.605]
[1749004274891,2.31592216,2612.5,2612.3,6.217]
[1749004275299,2.31592216,2612.5,2612.4,1.605]
[1749004276033,2.31592216,2612.5,2612.0,8.258]
[1749004276236,2.31592216,2612.5,2612.1,7.822]
[1749004276596,2.31592216,2612.5,2612.0,8.258]
[1749004276840,2.31592216,2612.5,2612.2,1.605]
[1749004277177,2.31592216,2612.5,2612.2,7.822]
[1749004278270,0.02,2612.9,2611.7,8.257]
[1749004278271,2.31592216,2612.3,2611.7,8.257]
[1749004278430,2.31592216,2612.1,2611.8,7.822]
[1749004278635,2.31592216,2612.1,2611.7,8.257]
[1749004279136,2.31592216,2612.1,2611.8,7.822]
[1749004280489,2.31592216,2612.3,2611.8,7.822]
[1749004280839,1.1921,2612.4,2612.0,10.0]
[1749004281039,3.59072216,2612.6,2612.0,10.0]
[1749004281260,3.59072216,2612.6,2611.9,8.184224]
[1749004281653,3.59072216,2612.6,2611.9,7.702224]
[1749004281861,3.59072216,2612.6,2611.8,8.20358482]
[1749004282061,2.31592216,2612.4,2611.8,8.20358482]
[1749004282785,2.31592216,2612.4,2611.8,0.38158482]
[1749004282947,2.31592216,2612.0,2611.9,1.605]
[1749004285087,2.31592216,2612.0,2611.9,7.825]
[1749004286590,2.31592216,2612.0,2611.9,7.824]
[1749004286999,2.31592216,2612.0,2611.9,1.606]
[1749004289191,2.31592216,2612.2,2611.9,1.606]
[1749004290178,2.31592216,2612.0,2611.9,1.606]
[1749004291373,0.35349222,2612.2,2611.9,1.606]
[1749004291374,2.31592216,2612.2,2611.9,1.606]
[1749004292512,2.31592216,2612.2,2611.9,7.824]
[1749004292697,1.2212,2611.9,2611.8,6.59817027]
[1749004292902,3.89083438,2611.9,2611.8,1.99592911]
[1749004293094,3.89083438,2611.9,2611.8,1.606]
[1749004294086,3.89083438,2611.9,2611.5,8.0]
[1749004294284,3.89083438,2611.9,2611.6,7.824]
[1749004294597,3.89083438,2611.9,2611.7,1.606]
[1749004295549,3.89083438,2611.9,2611.8,1.606]
[1749004297330,3.53712216,2611.9,2611.8,1.606]